Cogmind - Beta 11.1 @@@ ROGUE MODE // 2022.11.16 @ 17:17:17 Player: BRiNK Result: Destroyed by S-10 Pest with Light Assault Rifle Performance ------------- Evolutions (2) 1000 Regions Visited (7) 1400 Robots Destroyed (12) 60 Value Destroyed (180) 180 Prototype IDs (1) 20 Alien Tech Used (0) 0 Bonus (200) 200 TOTAL SCORE: 2860 Bonus ------- Entered Garrisons 200 Cogmind --------- Core Integrity 0/550 Matter 300/300 Energy 98/100 System Corruption 0% Temperature Cool (0) Movement Core (50) Location -8/Garrison Parts ------- > --- POWER (1) -------- (None) > --- PROPULSION (4) --- (None) > --- UTILITY (4) ------ Advanced Targeting Computer Melee Analysis Suite Melee Analysis Suite > --- WEAPON (2) ------- (None) > --- INVENTORY (5) ---- Improved Terrain Scan Processor Heavy EM Shotgun Heavy Particle Cannon Assault Rifle Katana Peak State ------------ > --- POWER ------------ Ion Engine > --- PROPULSION ------- Flight Unit Flight Unit Flight Unit Flight Unit > --- UTILITY ---------- Advanced Targeting Computer Melee Analysis Suite Melee Analysis Suite Core Shielding > --- WEAPON ----------- Heavy EM Shotgun Katana > --- INVENTORY -------- Improved Terrain Scan Processor Heavy Particle Cannon Assault Rifle Assault Rifle Light Assault Rifle [Rating: 22] Favorites ----------- Power Light Ion Engine Engine Light Ion Engine Propulsion Flight Unit Flight Unit Flight Unit Utility Melee Analysis Suite Storage Small Storage Unit Processor Melee Analysis Suite Protection Core Shielding Weapon Assault Rifle Energy Gun Heavy EM Shotgun Ballistic Gun Assault Rifle Slashing Weapon Katana Build | -11 -10 -10 -9 -9 -8 -8 -8 ------- Run | Scr Mat Min Mat Min Mat Sto Gar Slots Evolved 4 | . . . 2 . 2 . . Power . | . . . . . . . . Propulsion 2 | . . . . . 2 . . Utility 2 | . . . 2 . . . . Weapon . | . . . . . . . . Parts Attached 18 | 4 3 . 4 . 7 . . Power 2 | 1 . . . . 1 . . Engine 2 | 1 . . . . 1 . . Core . | . . . . . . . . Reactor . | . . . . . . . . Propulsion 5 | . 2 . 1 . 2 . . Treads . | . . . . . . . . Leg . | . . . . . . . . Wheel . | . . . . . . . . Hover . | . . . . . . . . Flight 5 | . 2 . 1 . 2 . . Utility 5 | 1 . . 2 . 2 . . Device . | . . . . . . . . Storage 1 | 1 . . . . . . . Processor 3 | . . . 1 . 2 . . Hackware . | . . . . . . . . Protection 1 | . . . 1 . . . . Artifact . | . . . . . . . . Weapon 6 | 2 1 . 1 . 2 . . Energy Gun 1 | . . . . . 1 . . Energy Cannon . | . . . . . . . . Ballistic Gun 4 | 2 1 . . . 1 . . Ballistic Cannon . | . . . . . . . . Launcher . | . . . . . . . . Special Weapon . | . . . . . . . . Impact Weapon . | . . . . . . . . Slashing Weapon 1 | . . . 1 . . . . Piercing Weapon . | . . . . . . . . Special Melee Weapon . | . . . . . . . . Unidentified Prototypes 1 | . . . . . 1 . . Parts Lost 9 | . . . 2 . . 7 . Power 2 | . . . 1 . . 1 . Propulsion 5 | . . . 1 . . 4 . Utility 1 | . . . . . . 1 . Weapon 1 | . . . . . . 1 . Highest Loss Streak 5 | . . . 2 . . 5 . To Critical Strikes . | . . . . . . . . Average Slot Usage (%) 62 | . 45 71 56 66 93 66 27 Engine 5 | . 14 14 5 . 9 6 . Flight 18 | . 7 28 20 22 36 16 . Processor 14 | . . . 3 11 21 27 27 Protection 5 | . . . 4 11 9 6 . Ballistic Gun 11 | . 24 28 18 11 9 4 . Slashing Weapon 5 | . . . 3 11 9 4 . Naked Turns . | . . . . . . . . Heaviest Build 10 | 6 6 6 6 5 10 10 . Greatest Support 16 | 3 8 8 8 8 16 16 3 Greatest Overweight (x) 3 | 1 1 . . . . 3 . Average Overweight (x) . | . . . . . . . . Largest Inventory Capacity 8 | 8 5 5 5 5 5 5 5 Average Capacity 5 | 5 5 5 5 5 5 5 5 Most Carried 5 | 3 4 3 5 5 5 5 5 Average Carried 3 | 1 2 3 3 5 3 4 5 Final Capacity 5 | 5 5 5 5 5 5 5 5 Final Carried 5 | 2 3 3 5 5 4 5 5 Class Distribution -------------------- 50% | Mutant 29% | Scavenger-Mutant 20% | Scavenger-Sprinter Dominant Class ---------------- Mutant | -10/Materials Mutant | -10/Mines Mutant | -9/Materials Scavenger-Mutant | -9/Mines Scavenger-Sprinter | -8/Materials Mutant | -8/Storage Mutant | -8/Garrison Resources | -11 -10 -10 -9 -9 -8 -8 -8 ----------- Run | Scr Mat Min Mat Min Mat Sto Gar Matter Collected 455 | 240 41 29 63 . 28 54 . Remotely . | . . . . . . . . Salvage Created 298 | . 41 . 119 35 28 75 . Parts 31 | . 8 . 14 4 3 2 . Haulers Intercepted . | . . . . . . . . Recyclers Shooed . | . . . . . . . . Parts Field Recycled . | . . . . . . . . Retrieved Matter . | . . . . . . . . Parts Self-Destructed . | . . . . . . . . Prevented . | . . . . . . . . Kills | -11 -10 -10 -9 -9 -8 -8 -8 ------- Run | Scr Mat Min Mat Min Mat Sto Gar Combat Hostiles Destroyed 8 | . 3 . 5 . . . . Guns 8 | . 3 . 5 . . . . Classes Destroyed 7 | . 1 . 2 2 1 1 . Worker 1 | . . . . 1 . . . Tunneler 1 | . . . . 1 . . . Recycler 1 | . . . . . . 1 . Watcher 1 | . . . . . 1 . . Swarmer 6 | . 3 . 3 . . . . Grunt 1 | . . . 1 . . . . Duelist 1 | . . . 1 . . . . Best Kill Streak 3 | . 3 . 3 2 1 1 . Combat Bots Only 3 | . 3 . 3 . . . . Max Kills in Single Turn 1 | . 1 . 1 1 1 1 . Gunslinging . | . . . . . . . . Exploded . | . . . . . . . . Melee . | . . . . . . . . Uniques/NPCs Destroyed . | . . . . . . . . Combat | -11 -10 -10 -9 -9 -8 -8 -8 -------- Run | Scr Mat Min Mat Min Mat Sto Gar Damage Taken 1098 | . 117 . 132 12 59 665 113 Core 628 | . 34 . 41 . 25 415 113 Absorbed by Shields . | . . . . . . . . Redirected to Shielding 39 | . . . 7 . 5 27 . Core Remaining (%) 91 | 100 . 86 . 89 . . . Volleys Fired 24 | . 10 . 9 . 4 1 . Largest 2 | . 2 . 2 . 1 1 . Hottest 40 | . 40 . 40 . 20 20 . Shots Fired 38 | . 20 . 13 . 4 1 . Gun 38 | . 20 . 13 . 4 1 . Cannon . | . . . . . . . . Launcher . | . . . . . . . . Special . | . . . . . . . . Kinetic 38 | . 20 . 13 . 4 1 . Thermal . | . . . . . . . . Explosive . | . . . . . . . . Electromagnetic . | . . . . . . . . Robot Hit Streak 7 | . 6 . 7 . 4 . . Robot Miss Streak 4 | . 4 . 2 . 1 . . Penetration Max . | . . . . . . . . Secondary Targets . | . . . . . . . . Shots Hit Robots 28 | . 11 . 10 2 4 1 . Core Hits 14 | . 4 . 8 . 2 . . Critical Kills . | . . . . . . . . Critical Parts Destroyed . | . . . . . . . . Critical Strikes . | . . . . . . . . Melee Attacks 4 | . . . . 2 1 1 . Impact . | . . . . . . . . Slashing 4 | . . . . 2 1 1 . Piercing . | . . . . . . . . Sneak Attacks 4 | . . . . 2 1 1 . Combat Hostiles . | . . . . . . . . Follow-up Attacks . | . . . . . . . . Damage Inflicted 564 | . 124 . 106 133 115 86 . Guns 276 | . 124 . 106 . 36 10 . Cannons . | . . . . . . . . Explosions . | . . . . . . . . Melee 288 | . . . . 133 79 76 . Ramming . | . . . . . . . . Kinetic 276 | . 124 . 106 . 36 10 . Thermal . | . . . . . . . . Explosive . | . . . . . . . . Electromagnetic . | . . . . . . . . Impact . | . . . . . . . . Slashing 288 | . . . . 133 79 76 . Piercing . | . . . . . . . . Highest Corruption . | . . . . . . . . Average Corruption . | . . . . . . . . Corruption Purged . | . . . . . . . . Corruption Blocked . | . . . . . . . . Overload Shots . | . . . . . . . . Overflow Damage 109 | . . . . 63 . 46 . Projectiles . | . . . . . . . . Explosions . | . . . . . . . . Melee 109 | . . . . 63 . 46 . Knockbacks . | . . . . . . . . Impact . | . . . . . . . . Kinetic . | . . . . . . . . Secondary . | . . . . . . . . Self-Inflicted Damage . | . . . . . . . . Shots . | . . . . . . . . Rammed . | . . . . . . . . Targets Rammed . | . . . . . . . . Kicked . | . . . . . . . . Crushed . | . . . . . . . . Highest Temperature 12 | . . . . . 3 12 . Average Temperature 6 | . . . . . 3 6 . Received Heat Transfer 389 | . . . 18 20 36 315 . Siege Activations . | . . . . . . . . Robots Corrupted . | . . . . . . . . Combat Hostiles . | . . . . . . . . Parts Fried . | . . . . . . . . Impact Corruptions . | . . . . . . . . Robots Melted . | . . . . . . . . Combat Hostiles . | . . . . . . . . Parts Melted . | . . . . . . . . Heat Transferred . | . . . . . . . . Parts Sabotaged . | . . . . . . . . Parts Stolen . | . . . . . . . . Parts Stripped . | . . . . . . . . Power Chain Reactions . | . . . . . . . . Missiles Intercepted . | . . . . . . . . Alert | -11 -10 -10 -9 -9 -8 -8 -8 ------- Run | Scr Mat Min Mat Min Mat Sto Gar Peak Influence 191 | . 85 33 135 77 111 191 139 Initial 124 | . . 33 12 52 29 46 124 Average 60 | . 39 33 42 56 58 97 124 Maximum Alert Level . | . . . . . . . . Low Security (%) 100 | 100 100 100 100 100 100 100 100 Level 1 . | . . . . . . . . Level 2 . | . . . . . . . . Level 3 . | . . . . . . . . Level 4 . | . . . . . . . . Level 5 . | . . . . . . . . High Security . | . . . . . . . . Max Security . | . . . . . . . . Squads Dispatched 4 | . 1 . . . 2 1 . Investigation . | . . . . . . . . Extermination . | . . . . . . . . Reinforcement 4 | . 1 . . . 2 1 . Assault . | . . . . . . . . Garrison . | . . . . . . . . Intercept . | . . . . . . . . Searches Triggered . | . . . . . . . . Construction Impeded . | . . . . . . . . Haulers Reinforced . | . . . . . . . . Active Scanning Responses . | . . . . . . . . Cargo Convoy Interrupts . | . . . . . . . . Stealth | -11 -10 -10 -9 -9 -8 -8 -8 --------- Run | Scr Mat Min Mat Min Mat Sto Gar Distress Signals 5 | . 1 . . . 1 3 . Communications Jammed . | . . . . . . . . Distress Signals . | . . . . . . . . Times Spotted 70 | . 5 . 5 10 8 27 15 Peak Tracking Total 20 | . 5 . 3 20 9 20 15 Tactical Retreats 8 | . 1 . . 2 1 4 . Traps | -11 -10 -10 -9 -9 -8 -8 -8 ------- Run | Scr Mat Min Mat Min Mat Sto Gar Traps Triggered . | . . . . . . . . Indirectly . | . . . . . . . . Trap Hack Attempts . | . . . . . . . . Triggered . | . . . . . . . . Disarmed . | . . . . . . . . Reprogrammed . | . . . . . . . . Reused . | . . . . . . . . Traps Extracted . | . . . . . . . . Installed . | . . . . . . . . Triggered . | . . . . . . . . Machines | -11 -10 -10 -9 -9 -8 -8 -8 ---------- Run | Scr Mat Min Mat Min Mat Sto Gar Machines Disabled . | . . . . . . . . Max in Single Turn . | . . . . . . . . Machines Sabotaged . | . . . . . . . . Garrisons Compromised . | . . . . . . . . Overloaded Fab Kills . | . . . . . . . . Hacking | -11 -10 -10 -9 -9 -8 -8 -8 --------- Run | Scr Mat Min Mat Min Mat Sto Gar Machines Accessed 5 | . . . . . 2 3 . Terminals 4 | . . . . . 2 2 . Fabricators . | . . . . . . . . Repair Stations . | . . . . . . . . Recycling Units . | . . . . . . . . Scanalyzers . | . . . . . . . . Garrison Access 1 | . . . . . . 1 . Total Hacks 9 | . . . . . 4 5 . Successful 2 | . . . . . . 2 . Failed 7 | . . . . . 4 3 . Catastrophic 2 | . . . . . 1 1 . Database Lockouts . | . . . . . . . . Manual 4 | . . . . . 4 . . Terminals 8 | . . . . . 4 4 . Fabricators . | . . . . . . . . Repair Stations . | . . . . . . . . Recycling Units . | . . . . . . . . Scanalyzers . | . . . . . . . . Garrison Access 1 | . . . . . . 1 . Terminal Hacks 1 | . . . . . . 1 . Open Door 1 | . . . . . . 1 . Fabricator Hacks . | . . . . . . . . Repair Station Hacks . | . . . . . . . . Recycling Unit Hacks . | . . . . . . . . Scanalyzer . | . . . . . . . . Garrison Access Hacks 1 | . . . . . . 1 . Unlock Access 1 | . . . . . . 1 . Unauthorized Hacks . | . . . . . . . . Terminals . | . . . . . . . . Fabricators . | . . . . . . . . Repair Stations . | . . . . . . . . Recycling Units . | . . . . . . . . Scanalyzers . | . . . . . . . . Garrison Access . | . . . . . . . . Data Cores Recovered . | . . . . . . . . Used . | . . . . . . . . Hacking Detections 5 | . . . . . 2 3 . Full Trace Events 1 | . . . . . . 1 . Feedback Events . | . . . . . . . . Feedback Blocked . | . . . . . . . . Robot Schematics Acquired . | . . . . . . . . Robots Built . | . . . . . . . . Authchips . | . . . . . . . . Time . | . . . . . . . . Total Robot Build Rating . | . . . . . . . . Part Schematics Acquired . | . . . . . . . . Parts Built . | . . . . . . . . Authchips . | . . . . . . . . Time . | . . . . . . . . Total Part Build Rating . | . . . . . . . . Parts Repaired . | . . . . . . . . Time . | . . . . . . . . Parts Recycled . | . . . . . . . . Recycled Matter . | . . . . . . . . Retrieved Matter . | . . . . . . . . Retrieved Components . | . . . . . . . . Parts Scanalyzed . | . . . . . . . . Part Schematics Acquired . | . . . . . . . . Parts Damaged . | . . . . . . . . Bothacking | -11 -10 -10 -9 -9 -8 -8 -8 ------------ Run | Scr Mat Min Mat Min Mat Sto Gar Used RIF Installer . | . . . . . . . . Robots Hacked . | . . . . . . . . Non-combat . | . . . . . . . . Combat . | . . . . . . . . Robot Hacks Applied . | . . . . . . . . Relay Couplers Released . | . . . . . . . . Fabnet Peak Effective % . | . . . . . . . . Robots Rewired . | . . . . . . . . Allies Hacked . | . . . . . . . . Hacks Repelled . | . . . . . . . . Allies | -11 -10 -10 -9 -9 -8 -8 -8 -------- Run | Scr Mat Min Mat Min Mat Sto Gar Total Allies . | . . . . . . . . Largest Group . | . . . . . . . . Highest-Rated Group . | . . . . . . . . Highest-Rated Ally . | . . . . . . . . Total Orders . | . . . . . . . . Ally Attacks . | . . . . . . . . Total Damage . | . . . . . . . . Kills . | . . . . . . . . Allies Corrupted . | . . . . . . . . Allies Melted . | . . . . . . . . Intel | -11 -10 -10 -9 -9 -8 -8 -8 ------- Run | Scr Mat Min Mat Min Mat Sto Gar Robot Analysis Total . | . . . . . . . . Derelict Logs Recovered 1 | . . . . 1 . . . Drone Launches . | . . . . . . . . Drone Recoveries . | . . . . . . . . Exploration | -11 -10 -10 -9 -9 -8 -8 -8 ------------- Run | Scr Mat Min Mat Min Mat Sto Gar Turns Passed 715 | 66 79 6 139 136 77 174 38 Spaces Moved 1235 | 63 69 17 107 355 169 379 76 Core 305 | 63 28 . . . . 138 76 Treads . | . . . . . . . . Legs . | . . . . . . . . Wheels . | . . . . . . . . Hover . | . . . . . . . . Flight 930 | . 41 17 107 355 169 241 . Fastest Speed 31 | 50 37 37 37 37 31 31 50 Average Speed 43 | 89 62 37 37 37 31 44 50 Slowest Speed 200 | 100 100 37 40 37 31 200 50 Overloaded Moves . | . . . . . . . . Propulsion Burnouts . | . . . . . . . . Robots Hopped 1 | . . . . . . 1 . Cave-ins Triggered . | . . . . . . . . Exploration Rate (%) 29 | 5 20 9 11 63 22 75 32 Regions Visited 7 Branch Regions 3 Pre-discovered Areas 1 | . . . . 1 . . . Known Exits Taken 1 | . . . . . . 1 . Unknown Exits Taken 6 | 1 1 1 1 1 1 . . Scrap Searched 2 | . . 1 . 1 . . . Spaces Dug . | . . . . . . . . Terrain Destroyed . | . . . . . . . . Melee . | . . . . . . . . Projectile . | . . . . . . . . AOE . | . . . . . . . . Terrain Rammed . | . . . . . . . . Walls Destroyed . | . . . . . . . . Machines Disabled . | . . . . . . . . Actions | -11 -10 -10 -9 -9 -8 -8 -8 --------- Run | Scr Mat Min Mat Min Mat Sto Gar Total 1366 | 73 86 16 192 356 186 381 76 Wait 68 | . . . 68 . . . . Move 1227 | 62 68 16 106 354 168 377 76 Hop 1 | . . . . . . 1 . Pick Up 20 | 6 4 . 5 . 5 . . Fast Attach . | . . . . . . . . Attach 15 | 4 3 . 3 . 5 . . Detach 1 | . . . . . . 1 . Swap 3 | . . . 1 . 2 . . Drop 3 | 1 1 . . . 1 . . Fire 24 | . 10 . 9 . 4 1 . Melee 4 | . . . . 2 1 1 . Ram . | . . . . . . . . Kick . | . . . . . . . . Crush . | . . . . . . . . Escape Stasis . | . . . . . . . . Rewire . | . . . . . . . . Trap . | . . . . . . . . Miscellaneous . | . . . . . . . . Route ------- -11/Scrapyard -10/Materials -10/Mines -9/Materials -9/Mines -8/Materials -8/Storage -8/Garrison History --------- Turn | Location | Event 9 | -11/Scrapyard | Discovered new exit (range 15) 67 | -11/Scrapyard | Entered Materials 140 | -10/Materials | Discovered new exit (range 16) 146 | -10/Materials | Entered Mines 150 | -10/Mines | Discovered new exit (range 5) 152 | -10/Mines | Entered Materials 152 | -9/Materials | Evolved 2 slots: Utility x2 287 | -9/Materials | Discovered new exit (range 9) 291 | -9/Materials | Entered Mines 403 | -9/Mines | Assembled infested the area 408 | -9/Mines | Learned location of Zion (-7) 425 | -9/Mines | Discovered new exit (range 9) 427 | -9/Mines | Entered Materials 427 | -8/Materials | Evolved 2 slots: Propulsion x2 502 | -8/Materials | Discovered new exit (range 5) 504 | -8/Materials | Entered Storage 622 | -8/Storage | Lost 5 parts (4n1w) 643 | -8/Storage | Core integrity fell below 50% 678 | -8/Storage | Identified exit to Garrison 678 | -8/Storage | Entered Garrison 708 | -8/Garrison | Core integrity fell below 20% 711 | -8/Garrison | Triggered checkpoint 711 | -8/Garrison | Triggered checkpoint 715 | -8/Garrison | Triggered checkpoint 716 | -8/Garrison | Triggered checkpoint 716 | -8/Garrison | Destroyed by S-10 Pest with Light Assault Rifle Last Messages --------------- 00617_ O-16 Technician uses terminal to summon reinforcements. 00617_ ALERT: Hostiles spotted, dispatching reinforcements to Terminal S002. 00617_ O-16 Technician locks terminal. 00625_ K-01 Serf collects debris. 00625_ Ion Engine destroyed. 00628_ Core Shielding destroyed. 00632_ Connecting with Door Terminal... 00641_ Connecting with Terminal... 00647_ W-25 Informer sends out distress signal. 00648_ K-01 Serf collects debris. 00678_ Connecting with Garrison Access... >>Unlock Access door unlocked. 00678_ EXIT=UNLOCKED: GARRISON 00678_ Connecting with Garrison Access... LOCATION=GARRISON GOAL=ESCAPE 00707_ Penetrated by Slug. 00711_ Beams of light sweep through the air. An alarm sounds. Map ----- +----------------------------------------------------+ | ?????????????????????????????????????????????????? | | ?????????????????????????????????????????????????? | | ?????????????????????????????????????????????????? | | ?????????????????????????????????????????????????? | | ?????????????????????????????????????????????????? | | ?????????????????????????????????????????????????? | | ?????????????????????????????????????????????????? | | ?????????????????????????????????????????????????? | | ?????????????????????????????????????????????????? | | ?????????????????????????????????????????????????? | | ????????????????????????? ?????????????????????? | | ????????????????????????? #????????????????????? | | ????????????????????????? #????????????????????? | | ????????????????????????? #????????????????????? | | ????????????????????????? #????????????????????? | | ????????????????????????? #????????????????????? | | ??????????????# ?#####?? #????????????????????? | | ??????????????# ## ?# #????????????????????? | | ?????????????## ## ## #????????????????????? | | ????????????## #????????????????????? | | ???????????? #????????????????????? | | ????????????? g #????????????????????? | | ?????????????# ## g ## #????????????????????? | | ???????????### ## ## ###??????????????????? | | ???????????# h s#??????????????????? | | ???????????#g @ s #??????????????????? | | ???????????#g s#??????????????????? | | ???????????# g s#??????????????????? | | ???????????### ## ## ###??????????????????? | | ???########### ## ## #????????????????????? | | ???# s #????????????????????? | | ???# #????????????????????? | | ???# ######## s #????????????????????? | | ???# #??????## ## ## ##????????????????????? | | ???# #???????# ## ## #?????????????????????? | | #### #???????# ######## #?????????????????????? | | #???????# #??????# #?????????????????????? | | #### #???????# #??????# #?????????????????????? | | ???# #???????# #??????# #?????????????????????? | | ???# ######### #??????# #?????????????????????? | | ???# #??????# #?????????????????????? | | ???# #??????? ?????????????????????? | | ???# ############??????? ?????????????????????? | | ???# #??????????????????###?????????????????????? | | ???# #??????????????????????????????????????????? | | ???# #??????????????????????????????????????????? | | ???# #??????????????????????????????????????????? | | ???# #??????????????????????????????????????????? | | ???# #??????????????????????????????????????????? | | ???# #??????????????????????????????????????????? | +----------------------------------------------------+ Best States ------------- Heat Dissipation 31 Energy Generation 10 Energy Capacity 250 Matter Stores 300 Matter Capacity 300 Sight Range 16 Terrain Scan Density 10 Core Shielding 20 Evasion (%) 63 Targeting Accuracy 8 Melee Accuracy 10 Item Schematics ----------------- None Robot Schematics ------------------ None Fabricated ------------ Nothing Alien Tech Used ----------------- None Achievements -------------- Hunted Watch This! Challenges ------------ None Game ------ Seed ArmageddonChargeInverter Manual? 0 Play Time 00:19:02 Cumulative 30.0 hours Start 2022.11.16 @ 16:57:11 End 2022.11.16 @ 17:17:17 Sessions 1 Manual Loads 0 Difficulty Rogue Special Mode None Game No. 35 Rogue 35 Adventurer 0 Explorer 0 Win Type - Total 0 Types 0/0/0/0/0/0/0/0/0 Lore% 24 Gallery% 31 Achievement% 26 Wizard Run 0 Options --------- ASCII 0 Keyboard 0 Movement Mouse Keybinds 0 Fullscreen 1 Font 24/Crisp Map View 76x50 Tactical HUD 1 Map Filters NONE Filters NONE Steam 1 RUN: f5ebf750-1592-4b39-b819-11f4bedc07db